{"text_format":"3","workbook":"xlsx","n_sheets":4,"sheets":["EVENIMENTE","CALENDAR","VERSIUNE PENTRU IMPRIMARE","ADMIN"],"not_rendered":{"defined_names":18},"read":"whole","date_system":"1900"}

{"sheet":"EVENIMENTE","index":0,"n_rows":38,"n_cols":5,"rows_kept":38}
[]
[null,"PLANIFICATOR DE EVENIMENTE LUNARE"]
[null,"PENTRU COMUNITATE"]
[]
[]
[]
[]
[null,"DATA","ZIUA","LUNA","NUMELE EVENIMENTULUI"]
[null,"2016-07-01",{"$f":"IF(ISBLANK(tblEvenimente[[#This Row],[DATA]]),\"\",UPPER(TEXT(tblEvenimente[[#This Row],[DATA]],\"ddd\")))","v":"V"},{"$f":"IF(ISBLANK(tblEvenimente[[#This Row],[DATA]]),\"\",UPPER(TEXT(tblEvenimente[[#This Row],[DATA]],\"mmm\")))","v":"IUL"},"Grădina comunitară"]
[null,"2016-07-01",{"$f":"IF(ISBLANK(tblEvenimente[[#This Row],[DATA]]),\"\",UPPER(TEXT(tblEvenimente[[#This Row],[DATA]],\"ddd\")))","v":"V"},{"$f":"IF(ISBLANK(tblEvenimente[[#This Row],[DATA]]),\"\",UPPER(TEXT(tblEvenimente[[#This Row],[DATA]],\"mmm\")))","v":"IUL"},"Consiliul comunal"]
[null,"2016-07-02",{"$f":"IF(ISBLANK(tblEvenimente[[#This Row],[DATA]]),\"\",UPPER(TEXT(tblEvenimente[[#This Row],[DATA]],\"ddd\")))","v":"S"},{"$f":"IF(ISBLANK(tblEvenimente[[#This Row],[DATA]]),\"\",UPPER(TEXT(tblEvenimente[[#This Row],[DATA]],\"mmm\")))","v":"IUL"},"Grădina comunitară"]
[null,"2016-07-03",{"$f":"IF(ISBLANK(tblEvenimente[[#This Row],[DATA]]),\"\",UPPER(TEXT(tblEvenimente[[#This Row],[DATA]],\"ddd\")))","v":"D"},{"$f":"IF(ISBLANK(tblEvenimente[[#This Row],[DATA]]),\"\",UPPER(TEXT(tblEvenimente[[#This Row],[DATA]],\"mmm\")))","v":"IUL"},"Noapte de filme în parc"]
[null,"2016-07-08",{"$f":"IF(ISBLANK(tblEvenimente[[#This Row],[DATA]]),\"\",UPPER(TEXT(tblEvenimente[[#This Row],[DATA]],\"ddd\")))","v":"V"},{"$f":"IF(ISBLANK(tblEvenimente[[#This Row],[DATA]]),\"\",UPPER(TEXT(tblEvenimente[[#This Row],[DATA]],\"mmm\")))","v":"IUL"},"Consiliul comunal"]
[null,"2016-07-11",{"$f":"IF(ISBLANK(tblEvenimente[[#This Row],[DATA]]),\"\",UPPER(TEXT(tblEvenimente[[#This Row],[DATA]],\"ddd\")))","v":"L"},{"$f":"IF(ISBLANK(tblEvenimente[[#This Row],[DATA]]),\"\",UPPER(TEXT(tblEvenimente[[#This Row],[DATA]],\"mmm\")))","v":"IUL"},"Dineu de gală la Camera de Comerț"]
[null,"2016-07-12",{"$f":"IF(ISBLANK(tblEvenimente[[#This Row],[DATA]]),\"\",UPPER(TEXT(tblEvenimente[[#This Row],[DATA]],\"ddd\")))","v":"MA"},{"$f":"IF(ISBLANK(tblEvenimente[[#This Row],[DATA]]),\"\",UPPER(TEXT(tblEvenimente[[#This Row],[DATA]],\"mmm\")))","v":"IUL"},"Expoziție de antichități"]
[null,"2016-07-14",{"$f":"IF(ISBLANK(tblEvenimente[[#This Row],[DATA]]),\"\",UPPER(TEXT(tblEvenimente[[#This Row],[DATA]],\"ddd\")))","v":"J"},{"$f":"IF(ISBLANK(tblEvenimente[[#This Row],[DATA]]),\"\",UPPER(TEXT(tblEvenimente[[#This Row],[DATA]],\"mmm\")))","v":"IUL"},"Atelier comunitar"]
[null,"2016-07-15",{"$f":"IF(ISBLANK(tblEvenimente[[#This Row],[DATA]]),\"\",UPPER(TEXT(tblEvenimente[[#This Row],[DATA]],\"ddd\")))","v":"V"},{"$f":"IF(ISBLANK(tblEvenimente[[#This Row],[DATA]]),\"\",UPPER(TEXT(tblEvenimente[[#This Row],[DATA]],\"mmm\")))","v":"IUL"},"Consiliul comunal"]
[null,"2016-07-19",{"$f":"IF(ISBLANK(tblEvenimente[[#This Row],[DATA]]),\"\",UPPER(TEXT(tblEvenimente[[#This Row],[DATA]],\"ddd\")))","v":"MA"},{"$f":"IF(ISBLANK(tblEvenimente[[#This Row],[DATA]]),\"\",UPPER(TEXT(tblEvenimente[[#This Row],[DATA]],\"mmm\")))","v":"IUL"},"Atelier de planificare strategică"]
[null,"2016-07-20",{"$f":"IF(ISBLANK(tblEvenimente[[#This Row],[DATA]]),\"\",UPPER(TEXT(tblEvenimente[[#This Row],[DATA]],\"ddd\")))","v":"MI"},{"$f":"IF(ISBLANK(tblEvenimente[[#This Row],[DATA]]),\"\",UPPER(TEXT(tblEvenimente[[#This Row],[DATA]],\"mmm\")))","v":"IUL"},"Curățarea parcului"]
[null,"2016-07-22",{"$f":"IF(ISBLANK(tblEvenimente[[#This Row],[DATA]]),\"\",UPPER(TEXT(tblEvenimente[[#This Row],[DATA]],\"ddd\")))","v":"V"},{"$f":"IF(ISBLANK(tblEvenimente[[#This Row],[DATA]]),\"\",UPPER(TEXT(tblEvenimente[[#This Row],[DATA]],\"mmm\")))","v":"IUL"},"Consiliul comunal"]
[null,"2016-07-26",{"$f":"IF(ISBLANK(tblEvenimente[[#This Row],[DATA]]),\"\",UPPER(TEXT(tblEvenimente[[#This Row],[DATA]],\"ddd\")))","v":"MA"},{"$f":"IF(ISBLANK(tblEvenimente[[#This Row],[DATA]]),\"\",UPPER(TEXT(tblEvenimente[[#This Row],[DATA]],\"mmm\")))","v":"IUL"},"Tur la pas prin centrul orașului"]
[null,"2016-07-26",{"$f":"IF(ISBLANK(tblEvenimente[[#This Row],[DATA]]),\"\",UPPER(TEXT(tblEvenimente[[#This Row],[DATA]],\"ddd\")))","v":"MA"},{"$f":"IF(ISBLANK(tblEvenimente[[#This Row],[DATA]]),\"\",UPPER(TEXT(tblEvenimente[[#This Row],[DATA]],\"mmm\")))","v":"IUL"},"Turul barurilor"]
[null,"2016-07-29",{"$f":"IF(ISBLANK(tblEvenimente[[#This Row],[DATA]]),\"\",UPPER(TEXT(tblEvenimente[[#This Row],[DATA]],\"ddd\")))","v":"V"},{"$f":"IF(ISBLANK(tblEvenimente[[#This Row],[DATA]]),\"\",UPPER(TEXT(tblEvenimente[[#This Row],[DATA]],\"mmm\")))","v":"IUL"},"Consiliul comunal"]
[null,"2016-08-05",{"$f":"IF(ISBLANK(tblEvenimente[[#This Row],[DATA]]),\"\",UPPER(TEXT(tblEvenimente[[#This Row],[DATA]],\"ddd\")))","v":"V"},{"$f":"IF(ISBLANK(tblEvenimente[[#This Row],[DATA]]),\"\",UPPER(TEXT(tblEvenimente[[#This Row],[DATA]],\"mmm\")))","v":"AUG"},"Consiliul comunal"]
[null,"2016-08-10",{"$f":"IF(ISBLANK(tblEvenimente[[#This Row],[DATA]]),\"\",UPPER(TEXT(tblEvenimente[[#This Row],[DATA]],\"ddd\")))","v":"MI"},{"$f":"IF(ISBLANK(tblEvenimente[[#This Row],[DATA]]),\"\",UPPER(TEXT(tblEvenimente[[#This Row],[DATA]],\"mmm\")))","v":"AUG"},"Curățarea parcului"]
[null,"2016-08-12",{"$f":"IF(ISBLANK(tblEvenimente[[#This Row],[DATA]]),\"\",UPPER(TEXT(tblEvenimente[[#This Row],[DATA]],\"ddd\")))","v":"V"},{"$f":"IF(ISBLANK(tblEvenimente[[#This Row],[DATA]]),\"\",UPPER(TEXT(tblEvenimente[[#This Row],[DATA]],\"mmm\")))","v":"AUG"},"Consiliul comunal"]
[null,"2016-08-13",{"$f":"IF(ISBLANK(tblEvenimente[[#This Row],[DATA]]),\"\",UPPER(TEXT(tblEvenimente[[#This Row],[DATA]],\"ddd\")))","v":"S"},{"$f":"IF(ISBLANK(tblEvenimente[[#This Row],[DATA]]),\"\",UPPER(TEXT(tblEvenimente[[#This Row],[DATA]],\"mmm\")))","v":"AUG"},"Grădina comunitară"]
[null,"2016-09-01",{"$f":"IF(ISBLANK(tblEvenimente[[#This Row],[DATA]]),\"\",UPPER(TEXT(tblEvenimente[[#This Row],[DATA]],\"ddd\")))","v":"J"},{"$f":"IF(ISBLANK(tblEvenimente[[#This Row],[DATA]]),\"\",UPPER(TEXT(tblEvenimente[[#This Row],[DATA]],\"mmm\")))","v":"SEP"},"Comitetul pentru buget"]
[null,"2016-10-01",{"$f":"IF(ISBLANK(tblEvenimente[[#This Row],[DATA]]),\"\",UPPER(TEXT(tblEvenimente[[#This Row],[DATA]],\"ddd\")))","v":"S"},{"$f":"IF(ISBLANK(tblEvenimente[[#This Row],[DATA]]),\"\",UPPER(TEXT(tblEvenimente[[#This Row],[DATA]],\"mmm\")))","v":"OCT"},"Comitetul pentru buget"]
[null,"2016-11-03",{"$f":"IF(ISBLANK(tblEvenimente[[#This Row],[DATA]]),\"\",UPPER(TEXT(tblEvenimente[[#This Row],[DATA]],\"ddd\")))","v":"J"},{"$f":"IF(ISBLANK(tblEvenimente[[#This Row],[DATA]]),\"\",UPPER(TEXT(tblEvenimente[[#This Row],[DATA]],\"mmm\")))","v":"NOV"},"Comitetul pentru buget"]
[null,"2016-12-01",{"$f":"IF(ISBLANK(tblEvenimente[[#This Row],[DATA]]),\"\",UPPER(TEXT(tblEvenimente[[#This Row],[DATA]],\"ddd\")))","v":"J"},{"$f":"IF(ISBLANK(tblEvenimente[[#This Row],[DATA]]),\"\",UPPER(TEXT(tblEvenimente[[#This Row],[DATA]],\"mmm\")))","v":"DEC"},"Comitetul pentru buget"]
[null,"2017-01-01",{"$f":"IF(ISBLANK(tblEvenimente[[#This Row],[DATA]]),\"\",UPPER(TEXT(tblEvenimente[[#This Row],[DATA]],\"ddd\")))","v":"D"},{"$f":"IF(ISBLANK(tblEvenimente[[#This Row],[DATA]]),\"\",UPPER(TEXT(tblEvenimente[[#This Row],[DATA]],\"mmm\")))","v":"IAN"},"Comitetul pentru buget"]
[null,"2017-02-02",{"$f":"IF(ISBLANK(tblEvenimente[[#This Row],[DATA]]),\"\",UPPER(TEXT(tblEvenimente[[#This Row],[DATA]],\"ddd\")))","v":"J"},{"$f":"IF(ISBLANK(tblEvenimente[[#This Row],[DATA]]),\"\",UPPER(TEXT(tblEvenimente[[#This Row],[DATA]],\"mmm\")))","v":"FEB"},"Comitetul pentru buget"]
[null,"2017-03-02",{"$f":"IF(ISBLANK(tblEvenimente[[#This Row],[DATA]]),\"\",UPPER(TEXT(tblEvenimente[[#This Row],[DATA]],\"ddd\")))","v":"J"},{"$f":"IF(ISBLANK(tblEvenimente[[#This Row],[DATA]]),\"\",UPPER(TEXT(tblEvenimente[[#This Row],[DATA]],\"mmm\")))","v":"MAR"},"Comitetul pentru buget"]
[null,"2017-04-01",{"$f":"IF(ISBLANK(tblEvenimente[[#This Row],[DATA]]),\"\",UPPER(TEXT(tblEvenimente[[#This Row],[DATA]],\"ddd\")))","v":"S"},{"$f":"IF(ISBLANK(tblEvenimente[[#This Row],[DATA]]),\"\",UPPER(TEXT(tblEvenimente[[#This Row],[DATA]],\"mmm\")))","v":"APR"},"Comitetul pentru buget"]
[null,"2017-05-01",{"$f":"IF(ISBLANK(tblEvenimente[[#This Row],[DATA]]),\"\",UPPER(TEXT(tblEvenimente[[#This Row],[DATA]],\"ddd\")))","v":"L"},{"$f":"IF(ISBLANK(tblEvenimente[[#This Row],[DATA]]),\"\",UPPER(TEXT(tblEvenimente[[#This Row],[DATA]],\"mmm\")))","v":"MAI"},"Comitetul pentru buget"]
[null,"2017-06-01",{"$f":"IF(ISBLANK(tblEvenimente[[#This Row],[DATA]]),\"\",UPPER(TEXT(tblEvenimente[[#This Row],[DATA]],\"ddd\")))","v":"J"},{"$f":"IF(ISBLANK(tblEvenimente[[#This Row],[DATA]]),\"\",UPPER(TEXT(tblEvenimente[[#This Row],[DATA]],\"mmm\")))","v":"IUN"},"Comitetul pentru buget"]
[null,"2017-06-02",{"$f":"IF(ISBLANK(tblEvenimente[[#This Row],[DATA]]),\"\",UPPER(TEXT(tblEvenimente[[#This Row],[DATA]],\"ddd\")))","v":"V"},{"$f":"IF(ISBLANK(tblEvenimente[[#This Row],[DATA]]),\"\",UPPER(TEXT(tblEvenimente[[#This Row],[DATA]],\"mmm\")))","v":"IUN"},"Consiliul comunal"]

{"sheet":"CALENDAR","index":1,"n_rows":35,"n_cols":21,"rows_kept":35,"merged":[[1,5,1,11],[30,8,34,20]]}
[]
[null,null,2016,null,null,{"$f":"LOOKUP(NumLună,tblLuni[NUMĂR],tblLuni[LUNA])","v":"IULIE"}]
[null,null,7,null,null,{"$f":"DATE(VizualizareAn,NumLună,1)","v":"2016-07-01"},null,null,{"$f":"WEEKDAY(DataDeÎnceput)","v":6}]
[null,null,"LU",null,null,"MA",null,null,"MI",null,null,"JO",null,null,"VI",null,null,"SÂ",null,null,"DU"]
[]
[null,null,{"$f":"DataDeÎnceput-(WEEKDAY(DataDeÎnceput)-2)+{0;1;2;3;4;5}*7 +{1,2,3,4,5,6,7}-3+COLUMN(B1)","v":"2016-06-27"},null,null,{"$f":"DataDeÎnceput-(WEEKDAY(DataDeÎnceput)-2)+{0;1;2;3;4;5}*7 +{1,2,3,4,5,6,7}-3+COLUMN(C1)","v":"2016-06-28"},null,null,{"$f":"DataDeÎnceput-(WEEKDAY(DataDeÎnceput)-2)+{0;1;2;3;4;5}*7 +{1,2,3,4,5,6,7}-3+COLUMN(D1)","v":"2016-06-29"},null,null,{"$f":"DataDeÎnceput-(WEEKDAY(DataDeÎnceput)-2)+{0;1;2;3;4;5}*7 +{1,2,3,4,5,6,7}-3+COLUMN(E1)","v":"2016-06-30"},null,null,{"$f":"DataDeÎnceput-(WEEKDAY(DataDeÎnceput)-2)+{0;1;2;3;4;5}*7 +{1,2,3,4,5,6,7}-3+COLUMN(F1)","v":"2016-07-01"},null,null,{"$f":"DataDeÎnceput-(WEEKDAY(DataDeÎnceput)-2)+{0;1;2;3;4;5}*7 +{1,2,3,4,5,6,7}-3+COLUMN(G1)","v":"2016-07-02"},null,null,{"$f":"DataDeÎnceput-(WEEKDAY(DataDeÎnceput)-2)+{0;1;2;3;4;5}*7 +{1,2,3,4,5,6,7}-3+COLUMN(H1)","v":"2016-07-03"}]
[null,null,{"$f":"IFERROR(INDEX(tblEvenimente[],SMALL(IF(Date=C$6,ROW(Date)),ROW(1:1))-ÎnceputRândTabel,4),\"\")","v":""},null,null,{"$f":"IFERROR(INDEX(tblEvenimente[],SMALL(IF(Date=F$6,ROW(Date)),ROW(1:1))-ÎnceputRândTabel,4),\"\")","v":""},null,null,{"$f":"IFERROR(INDEX(tblEvenimente[],SMALL(IF(Date=I$6,ROW(Date)),ROW(1:1))-ÎnceputRândTabel,4),\"\")","v":""},null,null,{"$f":"IFERROR(INDEX(tblEvenimente[],SMALL(IF(Date=L$6,ROW(Date)),ROW(1:1))-ÎnceputRândTabel,4),\"\")","v":""},null,null,{"$f":"IFERROR(INDEX(tblEvenimente[],SMALL(IF(Date=O$6,ROW(Date)),ROW(1:1))-ÎnceputRândTabel,4),\"\")","v":"Grădina comunitară"},null,null,{"$f":"IFERROR(INDEX(tblEvenimente[],SMALL(IF(Date=R$6,ROW(Date)),ROW(1:1))-ÎnceputRândTabel,4),\"\")","v":"Grădina comunitară"},null,null,{"$f":"IFERROR(INDEX(tblEvenimente[],SMALL(IF(Date=U$6,ROW(Date)),ROW(1:1))-ÎnceputRândTabel,4),\"\")","v":"Noapte de filme în parc"}]
[null,null,{"$f":"IFERROR(INDEX(tblEvenimente[],SMALL(IF(Date=C$6,ROW(Date)),ROW(2:2))-ÎnceputRândTabel,4),\"\")","v":""},null,null,{"$f":"IFERROR(INDEX(tblEvenimente[],SMALL(IF(Date=F$6,ROW(Date)),ROW(2:2))-ÎnceputRândTabel,4),\"\")","v":""},null,null,{"$f":"IFERROR(INDEX(tblEvenimente[],SMALL(IF(Date=I$6,ROW(Date)),ROW(2:2))-ÎnceputRândTabel,4),\"\")","v":""},null,null,{"$f":"IFERROR(INDEX(tblEvenimente[],SMALL(IF(Date=L$6,ROW(Date)),ROW(2:2))-ÎnceputRândTabel,4),\"\")","v":""},null,null,{"$f":"IFERROR(INDEX(tblEvenimente[],SMALL(IF(Date=O$6,ROW(Date)),ROW(2:2))-ÎnceputRândTabel,4),\"\")","v":"Consiliul comunal"},null,null,{"$f":"IFERROR(INDEX(tblEvenimente[],SMALL(IF(Date=R$6,ROW(Date)),ROW(2:2))-ÎnceputRândTabel,4),\"\")","v":""},null,null,{"$f":"IFERROR(INDEX(tblEvenimente[],SMALL(IF(Date=U$6,ROW(Date)),ROW(2:2))-ÎnceputRândTabel,4),\"\")","v":""}]
[null,null,{"$f":"IFERROR(INDEX(tblEvenimente[],SMALL(IF(Date=C$6,ROW(Date)),ROW(3:3))-ÎnceputRândTabel,4),\"\")","v":""},null,null,{"$f":"IFERROR(INDEX(tblEvenimente[],SMALL(IF(Date=F$6,ROW(Date)),ROW(3:3))-ÎnceputRândTabel,4),\"\")","v":""},null,null,{"$f":"IFERROR(INDEX(tblEvenimente[],SMALL(IF(Date=I$6,ROW(Date)),ROW(3:3))-ÎnceputRândTabel,4),\"\")","v":""},null,null,{"$f":"IFERROR(INDEX(tblEvenimente[],SMALL(IF(Date=L$6,ROW(Date)),ROW(3:3))-ÎnceputRândTabel,4),\"\")","v":""},null,null,{"$f":"IFERROR(INDEX(tblEvenimente[],SMALL(IF(Date=O$6,ROW(Date)),ROW(3:3))-ÎnceputRândTabel,4),\"\")","v":""},null,null,{"$f":"IFERROR(INDEX(tblEvenimente[],SMALL(IF(Date=R$6,ROW(Date)),ROW(3:3))-ÎnceputRândTabel,4),\"\")","v":""},null,null,{"$f":"IFERROR(INDEX(tblEvenimente[],SMALL(IF(Date=U$6,ROW(Date)),ROW(3:3))-ÎnceputRândTabel,4),\"\")","v":""}]
[null,null,{"$f":"IFERROR(INDEX(tblEvenimente[],SMALL(IF(Date=C$6,ROW(Date)),ROW(4:4))-ÎnceputRândTabel,4),\"\")","v":""},null,null,{"$f":"IFERROR(INDEX(tblEvenimente[],SMALL(IF(Date=F$6,ROW(Date)),ROW(4:4))-ÎnceputRândTabel,4),\"\")","v":""},null,null,{"$f":"IFERROR(INDEX(tblEvenimente[],SMALL(IF(Date=I$6,ROW(Date)),ROW(4:4))-ÎnceputRândTabel,4),\"\")","v":""},null,null,{"$f":"IFERROR(INDEX(tblEvenimente[],SMALL(IF(Date=L$6,ROW(Date)),ROW(4:4))-ÎnceputRândTabel,4),\"\")","v":""},null,null,{"$f":"IFERROR(INDEX(tblEvenimente[],SMALL(IF(Date=O$6,ROW(Date)),ROW(4:4))-ÎnceputRândTabel,4),\"\")","v":""},null,null,{"$f":"IFERROR(INDEX(tblEvenimente[],SMALL(IF(Date=R$6,ROW(Date)),ROW(4:4))-ÎnceputRândTabel,4),\"\")","v":""},null,null,{"$f":"IFERROR(INDEX(tblEvenimente[],SMALL(IF(Date=U$6,ROW(Date)),ROW(4:4))-ÎnceputRândTabel,4),\"\")","v":""}]
[null,null,{"$f":"U6+1","v":"2016-07-04"},null,null,{"$f":"C11+1","v":"2016-07-05"},null,null,{"$f":"F11+1","v":"2016-07-06"},null,null,{"$f":"I11+1","v":"2016-07-07"},null,null,{"$f":"L11+1","v":"2016-07-08"},null,null,{"$f":"O11+1","v":"2016-07-09"},null,null,{"$f":"R11+1","v":"2016-07-10"}]
[null,null,{"$f":"IFERROR(INDEX(tblEvenimente[],SMALL(IF(Date=C$11,ROW(Date)),ROW(1:1))-ÎnceputRândTabel,4),\"\")","v":""},null,null,{"$f":"IFERROR(INDEX(tblEvenimente[],SMALL(IF(Date=F$11,ROW(Date)),ROW(1:1))-ÎnceputRândTabel,4),\"\")","v":""},null,null,{"$f":"IFERROR(INDEX(tblEvenimente[],SMALL(IF(Date=I$11,ROW(Date)),ROW(1:1))-ÎnceputRândTabel,4),\"\")","v":""},null,null,{"$f":"IFERROR(INDEX(tblEvenimente[],SMALL(IF(Date=L$11,ROW(Date)),ROW(1:1))-ÎnceputRândTabel,4),\"\")","v":""},null,null,{"$f":"IFERROR(INDEX(tblEvenimente[],SMALL(IF(Date=O$11,ROW(Date)),ROW(1:1))-ÎnceputRândTabel,4),\"\")","v":"Consiliul comunal"},null,null,{"$f":"IFERROR(INDEX(tblEvenimente[],SMALL(IF(Date=R$11,ROW(Date)),ROW(1:1))-ÎnceputRândTabel,4),\"\")","v":""},null,null,{"$f":"IFERROR(INDEX(tblEvenimente[],SMALL(IF(Date=U$11,ROW(Date)),ROW(1:1))-ÎnceputRândTabel,4),\"\")","v":""}]
[null,null,{"$f":"IFERROR(INDEX(tblEvenimente[],SMALL(IF(Date=C$11,ROW(Date)),ROW(2:2))-ÎnceputRândTabel,4),\"\")","v":""},null,null,{"$f":"IFERROR(INDEX(tblEvenimente[],SMALL(IF(Date=F$11,ROW(Date)),ROW(2:2))-ÎnceputRândTabel,4),\"\")","v":""},null,null,{"$f":"IFERROR(INDEX(tblEvenimente[],SMALL(IF(Date=I$11,ROW(Date)),ROW(2:2))-ÎnceputRândTabel,4),\"\")","v":""},null,null,{"$f":"IFERROR(INDEX(tblEvenimente[],SMALL(IF(Date=L$11,ROW(Date)),ROW(2:2))-ÎnceputRândTabel,4),\"\")","v":""},null,null,{"$f":"IFERROR(INDEX(tblEvenimente[],SMALL(IF(Date=O$11,ROW(Date)),ROW(2:2))-ÎnceputRândTabel,4),\"\")","v":""},null,null,{"$f":"IFERROR(INDEX(tblEvenimente[],SMALL(IF(Date=R$11,ROW(Date)),ROW(2:2))-ÎnceputRândTabel,4),\"\")","v":""},null,null,{"$f":"IFERROR(INDEX(tblEvenimente[],SMALL(IF(Date=U$11,ROW(Date)),ROW(2:2))-ÎnceputRândTabel,4),\"\")","v":""}]
[null,null,{"$f":"IFERROR(INDEX(tblEvenimente[],SMALL(IF(Date=C$11,ROW(Date)),ROW(3:3))-ÎnceputRândTabel,4),\"\")","v":""},null,null,{"$f":"IFERROR(INDEX(tblEvenimente[],SMALL(IF(Date=F$11,ROW(Date)),ROW(3:3))-ÎnceputRândTabel,4),\"\")","v":""},null,null,{"$f":"IFERROR(INDEX(tblEvenimente[],SMALL(IF(Date=I$11,ROW(Date)),ROW(3:3))-ÎnceputRândTabel,4),\"\")","v":""},null,null,{"$f":"IFERROR(INDEX(tblEvenimente[],SMALL(IF(Date=L$11,ROW(Date)),ROW(3:3))-ÎnceputRândTabel,4),\"\")","v":""},null,null,{"$f":"IFERROR(INDEX(tblEvenimente[],SMALL(IF(Date=O$11,ROW(Date)),ROW(3:3))-ÎnceputRândTabel,4),\"\")","v":""},null,null,{"$f":"IFERROR(INDEX(tblEvenimente[],SMALL(IF(Date=R$11,ROW(Date)),ROW(3:3))-ÎnceputRândTabel,4),\"\")","v":""},null,null,{"$f":"IFERROR(INDEX(tblEvenimente[],SMALL(IF(Date=U$11,ROW(Date)),ROW(3:3))-ÎnceputRândTabel,4),\"\")","v":""}]
[null,null,{"$f":"IFERROR(INDEX(tblEvenimente[],SMALL(IF(Date=C$11,ROW(Date)),ROW(4:4))-ÎnceputRândTabel,4),\"\")","v":""},null,null,{"$f":"IFERROR(INDEX(tblEvenimente[],SMALL(IF(Date=F$11,ROW(Date)),ROW(4:4))-ÎnceputRândTabel,4),\"\")","v":""},null,null,{"$f":"IFERROR(INDEX(tblEvenimente[],SMALL(IF(Date=I$11,ROW(Date)),ROW(4:4))-ÎnceputRândTabel,4),\"\")","v":""},null,null,{"$f":"IFERROR(INDEX(tblEvenimente[],SMALL(IF(Date=L$11,ROW(Date)),ROW(4:4))-ÎnceputRândTabel,4),\"\")","v":""},null,null,{"$f":"IFERROR(INDEX(tblEvenimente[],SMALL(IF(Date=O$11,ROW(Date)),ROW(4:4))-ÎnceputRândTabel,4),\"\")","v":""},null,null,{"$f":"IFERROR(INDEX(tblEvenimente[],SMALL(IF(Date=R$11,ROW(Date)),ROW(4:4))-ÎnceputRândTabel,4),\"\")","v":""},null,null,{"$f":"IFERROR(INDEX(tblEvenimente[],SMALL(IF(Date=U$11,ROW(Date)),ROW(4:4))-ÎnceputRândTabel,4),\"\")","v":""}]
[null,null,{"$f":"U11+1","v":"2016-07-11"},null,null,{"$f":"C16+1","v":"2016-07-12"},null,null,{"$f":"F16+1","v":"2016-07-13"},null,null,{"$f":"I16+1","v":"2016-07-14"},null,null,{"$f":"L16+1","v":"2016-07-15"},null,null,{"$f":"O16+1","v":"2016-07-16"},null,null,{"$f":"R16+1","v":"2016-07-17"}]
[null,null,{"$f":"IFERROR(INDEX(tblEvenimente[],SMALL(IF(Date=C$16,ROW(Date)),ROW(1:1))-ÎnceputRândTabel,4),\"\")","v":"Dineu de gală la Camera de Comerț"},null,null,{"$f":"IFERROR(INDEX(tblEvenimente[],SMALL(IF(Date=F$16,ROW(Date)),ROW(1:1))-ÎnceputRândTabel,4),\"\")","v":"Expoziție de antichități"},null,null,{"$f":"IFERROR(INDEX(tblEvenimente[],SMALL(IF(Date=I$16,ROW(Date)),ROW(1:1))-ÎnceputRândTabel,4),\"\")","v":""},null,null,{"$f":"IFERROR(INDEX(tblEvenimente[],SMALL(IF(Date=L$16,ROW(Date)),ROW(1:1))-ÎnceputRândTabel,4),\"\")","v":"Atelier comunitar"},null,null,{"$f":"IFERROR(INDEX(tblEvenimente[],SMALL(IF(Date=O$16,ROW(Date)),ROW(1:1))-ÎnceputRândTabel,4),\"\")","v":"Consiliul comunal"},null,null,{"$f":"IFERROR(INDEX(tblEvenimente[],SMALL(IF(Date=R$16,ROW(Date)),ROW(1:1))-ÎnceputRândTabel,4),\"\")","v":""},null,null,{"$f":"IFERROR(INDEX(tblEvenimente[],SMALL(IF(Date=U$16,ROW(Date)),ROW(1:1))-ÎnceputRândTabel,4),\"\")","v":""}]
[null,null,{"$f":"IFERROR(INDEX(tblEvenimente[],SMALL(IF(Date=C$16,ROW(Date)),ROW(2:2))-ÎnceputRândTabel,4),\"\")","v":""},null,null,{"$f":"IFERROR(INDEX(tblEvenimente[],SMALL(IF(Date=F$16,ROW(Date)),ROW(2:2))-ÎnceputRândTabel,4),\"\")","v":""},null,null,{"$f":"IFERROR(INDEX(tblEvenimente[],SMALL(IF(Date=I$16,ROW(Date)),ROW(2:2))-ÎnceputRândTabel,4),\"\")","v":""},null,null,{"$f":"IFERROR(INDEX(tblEvenimente[],SMALL(IF(Date=L$16,ROW(Date)),ROW(2:2))-ÎnceputRândTabel,4),\"\")","v":""},null,null,{"$f":"IFERROR(INDEX(tblEvenimente[],SMALL(IF(Date=O$16,ROW(Date)),ROW(2:2))-ÎnceputRândTabel,4),\"\")","v":""},null,null,{"$f":"IFERROR(INDEX(tblEvenimente[],SMALL(IF(Date=R$16,ROW(Date)),ROW(2:2))-ÎnceputRândTabel,4),\"\")","v":""},null,null,{"$f":"IFERROR(INDEX(tblEvenimente[],SMALL(IF(Date=U$16,ROW(Date)),ROW(2:2))-ÎnceputRândTabel,4),\"\")","v":""}]
[null,null,{"$f":"IFERROR(INDEX(tblEvenimente[],SMALL(IF(Date=C$16,ROW(Date)),ROW(3:3))-ÎnceputRândTabel,4),\"\")","v":""},null,null,{"$f":"IFERROR(INDEX(tblEvenimente[],SMALL(IF(Date=F$16,ROW(Date)),ROW(3:3))-ÎnceputRândTabel,4),\"\")","v":""},null,null,{"$f":"IFERROR(INDEX(tblEvenimente[],SMALL(IF(Date=I$16,ROW(Date)),ROW(3:3))-ÎnceputRândTabel,4),\"\")","v":""},null,null,{"$f":"IFERROR(INDEX(tblEvenimente[],SMALL(IF(Date=L$16,ROW(Date)),ROW(3:3))-ÎnceputRândTabel,4),\"\")","v":""},null,null,{"$f":"IFERROR(INDEX(tblEvenimente[],SMALL(IF(Date=O$16,ROW(Date)),ROW(3:3))-ÎnceputRândTabel,4),\"\")","v":""},null,null,{"$f":"IFERROR(INDEX(tblEvenimente[],SMALL(IF(Date=R$16,ROW(Date)),ROW(3:3))-ÎnceputRândTabel,4),\"\")","v":""},null,null,{"$f":"IFERROR(INDEX(tblEvenimente[],SMALL(IF(Date=U$16,ROW(Date)),ROW(3:3))-ÎnceputRândTabel,4),\"\")","v":""}]
[null,null,{"$f":"IFERROR(INDEX(tblEvenimente[],SMALL(IF(Date=C$16,ROW(Date)),ROW(4:4))-ÎnceputRândTabel,4),\"\")","v":""},null,null,{"$f":"IFERROR(INDEX(tblEvenimente[],SMALL(IF(Date=F$16,ROW(Date)),ROW(4:4))-ÎnceputRândTabel,4),\"\")","v":""},null,null,{"$f":"IFERROR(INDEX(tblEvenimente[],SMALL(IF(Date=I$16,ROW(Date)),ROW(4:4))-ÎnceputRândTabel,4),\"\")","v":""},null,null,{"$f":"IFERROR(INDEX(tblEvenimente[],SMALL(IF(Date=L$16,ROW(Date)),ROW(4:4))-ÎnceputRândTabel,4),\"\")","v":""},null,null,{"$f":"IFERROR(INDEX(tblEvenimente[],SMALL(IF(Date=O$16,ROW(Date)),ROW(4:4))-ÎnceputRândTabel,4),\"\")","v":""},null,null,{"$f":"IFERROR(INDEX(tblEvenimente[],SMALL(IF(Date=R$16,ROW(Date)),ROW(4:4))-ÎnceputRândTabel,4),\"\")","v":""},null,null,{"$f":"IFERROR(INDEX(tblEvenimente[],SMALL(IF(Date=U$16,ROW(Date)),ROW(4:4))-ÎnceputRândTabel,4),\"\")","v":""}]
[null,null,{"$f":"U16+1","v":"2016-07-18"},null,null,{"$f":"C21+1","v":"2016-07-19"},null,null,{"$f":"F21+1","v":"2016-07-20"},null,null,{"$f":"I21+1","v":"2016-07-21"},null,null,{"$f":"L21+1","v":"2016-07-22"},null,null,{"$f":"O21+1","v":"2016-07-23"},null,null,{"$f":"R21+1","v":"2016-07-24"}]
[null,null,{"$f":"IFERROR(INDEX(tblEvenimente[],SMALL(IF(Date=C$21,ROW(Date)),ROW(1:1))-ÎnceputRândTabel,4),\"\")","v":""},null,null,{"$f":"IFERROR(INDEX(tblEvenimente[],SMALL(IF(Date=F$21,ROW(Date)),ROW(1:1))-ÎnceputRândTabel,4),\"\")","v":"Atelier de planificare strategică"},null,null,{"$f":"IFERROR(INDEX(tblEvenimente[],SMALL(IF(Date=I$21,ROW(Date)),ROW(1:1))-ÎnceputRândTabel,4),\"\")","v":"Curățarea parcului"},null,null,{"$f":"IFERROR(INDEX(tblEvenimente[],SMALL(IF(Date=L$21,ROW(Date)),ROW(1:1))-ÎnceputRândTabel,4),\"\")","v":""},null,null,{"$f":"IFERROR(INDEX(tblEvenimente[],SMALL(IF(Date=O$21,ROW(Date)),ROW(1:1))-ÎnceputRândTabel,4),\"\")","v":"Consiliul comunal"},null,null,{"$f":"IFERROR(INDEX(tblEvenimente[],SMALL(IF(Date=R$21,ROW(Date)),ROW(1:1))-ÎnceputRândTabel,4),\"\")","v":""},null,null,{"$f":"IFERROR(INDEX(tblEvenimente[],SMALL(IF(Date=U$21,ROW(Date)),ROW(1:1))-ÎnceputRândTabel,4),\"\")","v":""}]
[null,null,{"$f":"IFERROR(INDEX(tblEvenimente[],SMALL(IF(Date=C$21,ROW(Date)),ROW(2:2))-ÎnceputRândTabel,4),\"\")","v":""},null,null,{"$f":"IFERROR(INDEX(tblEvenimente[],SMALL(IF(Date=F$21,ROW(Date)),ROW(2:2))-ÎnceputRândTabel,4),\"\")","v":""},null,null,{"$f":"IFERROR(INDEX(tblEvenimente[],SMALL(IF(Date=I$21,ROW(Date)),ROW(2:2))-ÎnceputRândTabel,4),\"\")","v":""},null,null,{"$f":"IFERROR(INDEX(tblEvenimente[],SMALL(IF(Date=L$21,ROW(Date)),ROW(2:2))-ÎnceputRândTabel,4),\"\")","v":""},null,null,{"$f":"IFERROR(INDEX(tblEvenimente[],SMALL(IF(Date=O$21,ROW(Date)),ROW(2:2))-ÎnceputRândTabel,4),\"\")","v":""},null,null,{"$f":"IFERROR(INDEX(tblEvenimente[],SMALL(IF(Date=R$21,ROW(Date)),ROW(2:2))-ÎnceputRândTabel,4),\"\")","v":""},null,null,{"$f":"IFERROR(INDEX(tblEvenimente[],SMALL(IF(Date=U$21,ROW(Date)),ROW(2:2))-ÎnceputRândTabel,4),\"\")","v":""}]
[null,null,{"$f":"IFERROR(INDEX(tblEvenimente[],SMALL(IF(Date=C$21,ROW(Date)),ROW(3:3))-ÎnceputRândTabel,4),\"\")","v":""},null,null,{"$f":"IFERROR(INDEX(tblEvenimente[],SMALL(IF(Date=F$21,ROW(Date)),ROW(3:3))-ÎnceputRândTabel,4),\"\")","v":""},null,null,{"$f":"IFERROR(INDEX(tblEvenimente[],SMALL(IF(Date=I$21,ROW(Date)),ROW(3:3))-ÎnceputRândTabel,4),\"\")","v":""},null,null,{"$f":"IFERROR(INDEX(tblEvenimente[],SMALL(IF(Date=L$21,ROW(Date)),ROW(3:3))-ÎnceputRândTabel,4),\"\")","v":""},null,null,{"$f":"IFERROR(INDEX(tblEvenimente[],SMALL(IF(Date=O$21,ROW(Date)),ROW(3:3))-ÎnceputRândTabel,4),\"\")","v":""},null,null,{"$f":"IFERROR(INDEX(tblEvenimente[],SMALL(IF(Date=R$21,ROW(Date)),ROW(3:3))-ÎnceputRândTabel,4),\"\")","v":""},null,null,{"$f":"IFERROR(INDEX(tblEvenimente[],SMALL(IF(Date=U$21,ROW(Date)),ROW(3:3))-ÎnceputRândTabel,4),\"\")","v":""}]
[null,null,{"$f":"IFERROR(INDEX(tblEvenimente[],SMALL(IF(Date=C$21,ROW(Date)),ROW(4:4))-ÎnceputRândTabel,4),\"\")","v":""},null,null,{"$f":"IFERROR(INDEX(tblEvenimente[],SMALL(IF(Date=F$21,ROW(Date)),ROW(4:4))-ÎnceputRândTabel,4),\"\")","v":""},null,null,{"$f":"IFERROR(INDEX(tblEvenimente[],SMALL(IF(Date=I$21,ROW(Date)),ROW(4:4))-ÎnceputRândTabel,4),\"\")","v":""},null,null,{"$f":"IFERROR(INDEX(tblEvenimente[],SMALL(IF(Date=L$21,ROW(Date)),ROW(4:4))-ÎnceputRândTabel,4),\"\")","v":""},null,null,{"$f":"IFERROR(INDEX(tblEvenimente[],SMALL(IF(Date=O$21,ROW(Date)),ROW(4:4))-ÎnceputRândTabel,4),\"\")","v":""},null,null,{"$f":"IFERROR(INDEX(tblEvenimente[],SMALL(IF(Date=R$21,ROW(Date)),ROW(4:4))-ÎnceputRândTabel,4),\"\")","v":""},null,null,{"$f":"IFERROR(INDEX(tblEvenimente[],SMALL(IF(Date=U$21,ROW(Date)),ROW(4:4))-ÎnceputRândTabel,4),\"\")","v":""}]
[null,null,{"$f":"U21+1","v":"2016-07-25"},null,null,{"$f":"C26+1","v":"2016-07-26"},null,null,{"$f":"F26+1","v":"2016-07-27"},null,null,{"$f":"I26+1","v":"2016-07-28"},null,null,{"$f":"L26+1","v":"2016-07-29"},null,null,{"$f":"O26+1","v":"2016-07-30"},null,null,{"$f":"R26+1","v":"2016-07-31"}]
[null,null,{"$f":"IFERROR(INDEX(tblEvenimente[],SMALL(IF(Date=C$26,ROW(Date)),ROW(1:1))-ÎnceputRândTabel,4),\"\")","v":""},null,null,{"$f":"IFERROR(INDEX(tblEvenimente[],SMALL(IF(Date=F$26,ROW(Date)),ROW(1:1))-ÎnceputRândTabel,4),\"\")","v":"Tur la pas prin centrul orașului"},null,null,{"$f":"IFERROR(INDEX(tblEvenimente[],SMALL(IF(Date=I$26,ROW(Date)),ROW(1:1))-ÎnceputRândTabel,4),\"\")","v":""},null,null,{"$f":"IFERROR(INDEX(tblEvenimente[],SMALL(IF(Date=L$26,ROW(Date)),ROW(1:1))-ÎnceputRândTabel,4),\"\")","v":""},null,null,{"$f":"IFERROR(INDEX(tblEvenimente[],SMALL(IF(Date=O$26,ROW(Date)),ROW(1:1))-ÎnceputRândTabel,4),\"\")","v":"Consiliul comunal"},null,null,{"$f":"IFERROR(INDEX(tblEvenimente[],SMALL(IF(Date=R$26,ROW(Date)),ROW(1:1))-ÎnceputRândTabel,4),\"\")","v":""},null,null,{"$f":"IFERROR(INDEX(tblEvenimente[],SMALL(IF(Date=U$26,ROW(Date)),ROW(1:1))-ÎnceputRândTabel,4),\"\")","v":""}]
[null,null,{"$f":"IFERROR(INDEX(tblEvenimente[],SMALL(IF(Date=C$26,ROW(Date)),ROW(2:2))-ÎnceputRândTabel,4),\"\")","v":""},null,null,{"$f":"IFERROR(INDEX(tblEvenimente[],SMALL(IF(Date=F$26,ROW(Date)),ROW(2:2))-ÎnceputRândTabel,4),\"\")","v":"Turul barurilor"},null,null,{"$f":"IFERROR(INDEX(tblEvenimente[],SMALL(IF(Date=I$26,ROW(Date)),ROW(2:2))-ÎnceputRândTabel,4),\"\")","v":""},null,null,{"$f":"IFERROR(INDEX(tblEvenimente[],SMALL(IF(Date=L$26,ROW(Date)),ROW(2:2))-ÎnceputRândTabel,4),\"\")","v":""},null,null,{"$f":"IFERROR(INDEX(tblEvenimente[],SMALL(IF(Date=O$26,ROW(Date)),ROW(2:2))-ÎnceputRândTabel,4),\"\")","v":""},null,null,{"$f":"IFERROR(INDEX(tblEvenimente[],SMALL(IF(Date=R$26,ROW(Date)),ROW(2:2))-ÎnceputRândTabel,4),\"\")","v":""},null,null,{"$f":"IFERROR(INDEX(tblEvenimente[],SMALL(IF(Date=U$26,ROW(Date)),ROW(2:2))-ÎnceputRândTabel,4),\"\")","v":""}]
[null,null,{"$f":"IFERROR(INDEX(tblEvenimente[],SMALL(IF(Date=C$26,ROW(Date)),ROW(3:3))-ÎnceputRândTabel,4),\"\")","v":""},null,null,{"$f":"IFERROR(INDEX(tblEvenimente[],SMALL(IF(Date=F$26,ROW(Date)),ROW(3:3))-ÎnceputRândTabel,4),\"\")","v":""},null,null,{"$f":"IFERROR(INDEX(tblEvenimente[],SMALL(IF(Date=I$26,ROW(Date)),ROW(3:3))-ÎnceputRândTabel,4),\"\")","v":""},null,null,{"$f":"IFERROR(INDEX(tblEvenimente[],SMALL(IF(Date=L$26,ROW(Date)),ROW(3:3))-ÎnceputRândTabel,4),\"\")","v":""},null,null,{"$f":"IFERROR(INDEX(tblEvenimente[],SMALL(IF(Date=O$26,ROW(Date)),ROW(3:3))-ÎnceputRândTabel,4),\"\")","v":""},null,null,{"$f":"IFERROR(INDEX(tblEvenimente[],SMALL(IF(Date=R$26,ROW(Date)),ROW(3:3))-ÎnceputRândTabel,4),\"\")","v":""},null,null,{"$f":"IFERROR(INDEX(tblEvenimente[],SMALL(IF(Date=U$26,ROW(Date)),ROW(3:3))-ÎnceputRândTabel,4),\"\")","v":""}]
[null,null,{"$f":"IFERROR(INDEX(tblEvenimente[],SMALL(IF(Date=C$26,ROW(Date)),ROW(4:4))-ÎnceputRândTabel,4),\"\")","v":""},null,null,{"$f":"IFERROR(INDEX(tblEvenimente[],SMALL(IF(Date=F$26,ROW(Date)),ROW(4:4))-ÎnceputRândTabel,4),\"\")","v":""},null,null,{"$f":"IFERROR(INDEX(tblEvenimente[],SMALL(IF(Date=I$26,ROW(Date)),ROW(4:4))-ÎnceputRândTabel,4),\"\")","v":""},null,null,{"$f":"IFERROR(INDEX(tblEvenimente[],SMALL(IF(Date=L$26,ROW(Date)),ROW(4:4))-ÎnceputRândTabel,4),\"\")","v":""},null,null,{"$f":"IFERROR(INDEX(tblEvenimente[],SMALL(IF(Date=O$26,ROW(Date)),ROW(4:4))-ÎnceputRândTabel,4),\"\")","v":""},null,null,{"$f":"IFERROR(INDEX(tblEvenimente[],SMALL(IF(Date=R$26,ROW(Date)),ROW(4:4))-ÎnceputRândTabel,4),\"\")","v":""},null,null,{"$f":"IFERROR(INDEX(tblEvenimente[],SMALL(IF(Date=U$26,ROW(Date)),ROW(4:4))-ÎnceputRândTabel,4),\"\")","v":""}]
[null,null,{"$f":"U26+1","v":"2016-08-01"},null,null,{"$f":"C31+1","v":"2016-08-02"},null,null,"NOTE:"]
[null,null,{"$f":"IFERROR(INDEX(tblEvenimente[],SMALL(IF(Date=C$31,ROW(Date)),ROW(1:1))-ÎnceputRândTabel,4),\"\")","v":""},null,null,{"$f":"IFERROR(INDEX(tblEvenimente[],SMALL(IF(Date=F$31,ROW(Date)),ROW(1:1))-ÎnceputRândTabel,4),\"\")","v":""}]
[null,null,{"$f":"IFERROR(INDEX(tblEvenimente[],SMALL(IF(Date=C$31,ROW(Date)),ROW(2:2))-ÎnceputRândTabel,4),\"\")","v":""},null,null,{"$f":"IFERROR(INDEX(tblEvenimente[],SMALL(IF(Date=F$31,ROW(Date)),ROW(2:2))-ÎnceputRândTabel,4),\"\")","v":""}]
[null,null,{"$f":"IFERROR(INDEX(tblEvenimente[],SMALL(IF(Date=C$31,ROW(Date)),ROW(3:3))-ÎnceputRândTabel,4),\"\")","v":""},null,null,{"$f":"IFERROR(INDEX(tblEvenimente[],SMALL(IF(Date=F$31,ROW(Date)),ROW(3:3))-ÎnceputRândTabel,4),\"\")","v":""}]
[null,null,{"$f":"IFERROR(INDEX(tblEvenimente[],SMALL(IF(Date=C$31,ROW(Date)),ROW(4:4))-ÎnceputRândTabel,4),\"\")","v":""},null,null,{"$f":"IFERROR(INDEX(tblEvenimente[],SMALL(IF(Date=F$31,ROW(Date)),ROW(4:4))-ÎnceputRândTabel,4),\"\")","v":""}]

{"sheet":"VERSIUNE PENTRU IMPRIMARE","index":2,"n_rows":35,"n_cols":21,"rows_kept":35,"merged":[[1,5,1,11],[30,8,34,20]]}
[]
[null,null,{"$f":"VizualizareAn","v":2016},null,null,{"$f":"VizualizareLună","v":"IULIE"},{"$f":"CALENDAR!G2","v":0},{"$f":"CALENDAR!H2","v":0},{"$f":"CALENDAR!I2","v":0},{"$f":"CALENDAR!J2","v":0},{"$f":"CALENDAR!K2","v":0},{"$f":"CALENDAR!L2","v":0}]
[]
[null,null,"LU",null,null,"MA",null,null,"MI",null,null,"JO",null,null,"VI",null,null,"SÂ",null,null,"DU"]
[]
[null,null,{"$f":"CALENDAR!C6","v":"2016-06-27"},{"$f":"CALENDAR!D6","v":0},{"$f":"CALENDAR!E6","v":0},{"$f":"CALENDAR!F6","v":"2016-06-28"},{"$f":"CALENDAR!G6","v":0},{"$f":"CALENDAR!H6","v":0},{"$f":"CALENDAR!I6","v":"2016-06-29"},{"$f":"CALENDAR!J6","v":0},{"$f":"CALENDAR!K6","v":0},{"$f":"CALENDAR!L6","v":"2016-06-30"},{"$f":"CALENDAR!M6","v":0},{"$f":"CALENDAR!N6","v":0},{"$f":"CALENDAR!O6","v":"2016-07-01"},{"$f":"CALENDAR!P6","v":0},{"$f":"CALENDAR!Q6","v":0},{"$f":"CALENDAR!R6","v":"2016-07-02"},{"$f":"CALENDAR!S6","v":0},{"$f":"CALENDAR!T6","v":0},{"$f":"CALENDAR!U6","v":"2016-07-03"}]
[null,null,{"$f":"CALENDAR!C7","v":""},{"$f":"CALENDAR!D7","v":0},{"$f":"CALENDAR!E7","v":0},{"$f":"CALENDAR!F7","v":""},{"$f":"CALENDAR!G7","v":0},{"$f":"CALENDAR!H7","v":0},{"$f":"CALENDAR!I7","v":""},{"$f":"CALENDAR!J7","v":0},{"$f":"CALENDAR!K7","v":0},{"$f":"CALENDAR!L7","v":""},{"$f":"CALENDAR!M7","v":0},{"$f":"CALENDAR!N7","v":0},{"$f":"CALENDAR!O7","v":"Grădina comunitară"},{"$f":"CALENDAR!P7","v":0},{"$f":"CALENDAR!Q7","v":0},{"$f":"CALENDAR!R7","v":"Grădina comunitară"},{"$f":"CALENDAR!S7","v":0},{"$f":"CALENDAR!T7","v":0},{"$f":"CALENDAR!U7","v":"Noapte de filme în parc"}]
[null,null,{"$f":"CALENDAR!C8","v":""},{"$f":"CALENDAR!D8","v":"00:00:00"},{"$f":"CALENDAR!E8","v":"00:00:00"},{"$f":"CALENDAR!F8","v":""},{"$f":"CALENDAR!G8","v":"00:00:00"},{"$f":"CALENDAR!H8","v":"00:00:00"},{"$f":"CALENDAR!I8","v":""},{"$f":"CALENDAR!J8","v":"00:00:00"},{"$f":"CALENDAR!K8","v":"00:00:00"},{"$f":"CALENDAR!L8","v":""},{"$f":"CALENDAR!M8","v":"00:00:00"},{"$f":"CALENDAR!N8","v":"00:00:00"},{"$f":"CALENDAR!O8","v":"Consiliul comunal"},{"$f":"CALENDAR!P8","v":"00:00:00"},{"$f":"CALENDAR!Q8","v":"00:00:00"},{"$f":"CALENDAR!R8","v":""},{"$f":"CALENDAR!S8","v":"00:00:00"},{"$f":"CALENDAR!T8","v":"00:00:00"},{"$f":"CALENDAR!U8","v":""}]
[null,null,{"$f":"CALENDAR!C9","v":""},{"$f":"CALENDAR!D9","v":0},{"$f":"CALENDAR!E9","v":0},{"$f":"CALENDAR!F9","v":""},{"$f":"CALENDAR!G9","v":0},{"$f":"CALENDAR!H9","v":0},{"$f":"CALENDAR!I9","v":""},{"$f":"CALENDAR!J9","v":0},{"$f":"CALENDAR!K9","v":0},{"$f":"CALENDAR!L9","v":""},{"$f":"CALENDAR!M9","v":0},{"$f":"CALENDAR!N9","v":0},{"$f":"CALENDAR!O9","v":""},{"$f":"CALENDAR!P9","v":0},{"$f":"CALENDAR!Q9","v":0},{"$f":"CALENDAR!R9","v":""},{"$f":"CALENDAR!S9","v":0},{"$f":"CALENDAR!T9","v":0},{"$f":"CALENDAR!U9","v":""}]
[null,null,{"$f":"CALENDAR!C10","v":""},{"$f":"CALENDAR!D10","v":0},{"$f":"CALENDAR!E10","v":0},{"$f":"CALENDAR!F10","v":""},{"$f":"CALENDAR!G10","v":0},{"$f":"CALENDAR!H10","v":0},{"$f":"CALENDAR!I10","v":""},{"$f":"CALENDAR!J10","v":0},{"$f":"CALENDAR!K10","v":0},{"$f":"CALENDAR!L10","v":""},{"$f":"CALENDAR!M10","v":0},{"$f":"CALENDAR!N10","v":0},{"$f":"CALENDAR!O10","v":""},{"$f":"CALENDAR!P10","v":0},{"$f":"CALENDAR!Q10","v":0},{"$f":"CALENDAR!R10","v":""},{"$f":"CALENDAR!S10","v":0},{"$f":"CALENDAR!T10","v":0},{"$f":"CALENDAR!U10","v":""}]
[null,null,{"$f":"CALENDAR!C11","v":"2016-07-04"},{"$f":"CALENDAR!D11","v":0},{"$f":"CALENDAR!E11","v":0},{"$f":"CALENDAR!F11","v":"2016-07-05"},{"$f":"CALENDAR!G11","v":0},{"$f":"CALENDAR!H11","v":0},{"$f":"CALENDAR!I11","v":"2016-07-06"},{"$f":"CALENDAR!J11","v":0},{"$f":"CALENDAR!K11","v":0},{"$f":"CALENDAR!L11","v":"2016-07-07"},{"$f":"CALENDAR!M11","v":0},{"$f":"CALENDAR!N11","v":0},{"$f":"CALENDAR!O11","v":"2016-07-08"},{"$f":"CALENDAR!P11","v":0},{"$f":"CALENDAR!Q11","v":0},{"$f":"CALENDAR!R11","v":"2016-07-09"},{"$f":"CALENDAR!S11","v":0},{"$f":"CALENDAR!T11","v":0},{"$f":"CALENDAR!U11","v":"2016-07-10"}]
[null,null,{"$f":"CALENDAR!C12","v":""},{"$f":"CALENDAR!D12","v":0},{"$f":"CALENDAR!E12","v":0},{"$f":"CALENDAR!F12","v":""},{"$f":"CALENDAR!G12","v":0},{"$f":"CALENDAR!H12","v":0},{"$f":"CALENDAR!I12","v":""},{"$f":"CALENDAR!J12","v":0},{"$f":"CALENDAR!K12","v":0},{"$f":"CALENDAR!L12","v":""},{"$f":"CALENDAR!M12","v":0},{"$f":"CALENDAR!N12","v":0},{"$f":"CALENDAR!O12","v":"Consiliul comunal"},{"$f":"CALENDAR!P12","v":0},{"$f":"CALENDAR!Q12","v":0},{"$f":"CALENDAR!R12","v":""},{"$f":"CALENDAR!S12","v":0},{"$f":"CALENDAR!T12","v":0},{"$f":"CALENDAR!U12","v":""}]
[null,null,{"$f":"CALENDAR!C13","v":""},{"$f":"CALENDAR!D13","v":0},{"$f":"CALENDAR!E13","v":0},{"$f":"CALENDAR!F13","v":""},{"$f":"CALENDAR!G13","v":0},{"$f":"CALENDAR!H13","v":0},{"$f":"CALENDAR!I13","v":""},{"$f":"CALENDAR!J13","v":0},{"$f":"CALENDAR!K13","v":0},{"$f":"CALENDAR!L13","v":""},{"$f":"CALENDAR!M13","v":0},{"$f":"CALENDAR!N13","v":0},{"$f":"CALENDAR!O13","v":""},{"$f":"CALENDAR!P13","v":0},{"$f":"CALENDAR!Q13","v":0},{"$f":"CALENDAR!R13","v":""},{"$f":"CALENDAR!S13","v":0},{"$f":"CALENDAR!T13","v":0},{"$f":"CALENDAR!U13","v":""}]
[null,null,{"$f":"CALENDAR!C14","v":""},{"$f":"CALENDAR!D14","v":0},{"$f":"CALENDAR!E14","v":0},{"$f":"CALENDAR!F14","v":""},{"$f":"CALENDAR!G14","v":0},{"$f":"CALENDAR!H14","v":0},{"$f":"CALENDAR!I14","v":""},{"$f":"CALENDAR!J14","v":0},{"$f":"CALENDAR!K14","v":0},{"$f":"CALENDAR!L14","v":""},{"$f":"CALENDAR!M14","v":0},{"$f":"CALENDAR!N14","v":0},{"$f":"CALENDAR!O14","v":""},{"$f":"CALENDAR!P14","v":0},{"$f":"CALENDAR!Q14","v":0},{"$f":"CALENDAR!R14","v":""},{"$f":"CALENDAR!S14","v":0},{"$f":"CALENDAR!T14","v":0},{"$f":"CALENDAR!U14","v":""}]
[null,null,{"$f":"CALENDAR!C15","v":""},{"$f":"CALENDAR!D15","v":0},{"$f":"CALENDAR!E15","v":0},{"$f":"CALENDAR!F15","v":""},{"$f":"CALENDAR!G15","v":0},{"$f":"CALENDAR!H15","v":0},{"$f":"CALENDAR!I15","v":""},{"$f":"CALENDAR!J15","v":0},{"$f":"CALENDAR!K15","v":0},{"$f":"CALENDAR!L15","v":""},{"$f":"CALENDAR!M15","v":0},{"$f":"CALENDAR!N15","v":0},{"$f":"CALENDAR!O15","v":""},{"$f":"CALENDAR!P15","v":0},{"$f":"CALENDAR!Q15","v":0},{"$f":"CALENDAR!R15","v":""},{"$f":"CALENDAR!S15","v":0},{"$f":"CALENDAR!T15","v":0},{"$f":"CALENDAR!U15","v":""}]
[null,null,{"$f":"CALENDAR!C16","v":"2016-07-11"},{"$f":"CALENDAR!D16","v":0},{"$f":"CALENDAR!E16","v":0},{"$f":"CALENDAR!F16","v":"2016-07-12"},{"$f":"CALENDAR!G16","v":0},{"$f":"CALENDAR!H16","v":0},{"$f":"CALENDAR!I16","v":"2016-07-13"},{"$f":"CALENDAR!J16","v":0},{"$f":"CALENDAR!K16","v":0},{"$f":"CALENDAR!L16","v":"2016-07-14"},{"$f":"CALENDAR!M16","v":0},{"$f":"CALENDAR!N16","v":0},{"$f":"CALENDAR!O16","v":"2016-07-15"},{"$f":"CALENDAR!P16","v":0},{"$f":"CALENDAR!Q16","v":0},{"$f":"CALENDAR!R16","v":"2016-07-16"},{"$f":"CALENDAR!S16","v":0},{"$f":"CALENDAR!T16","v":0},{"$f":"CALENDAR!U16","v":"2016-07-17"}]
[null,null,{"$f":"CALENDAR!C17","v":"Dineu de gală la Camera de Comerț"},{"$f":"CALENDAR!D17","v":0},{"$f":"CALENDAR!E17","v":0},{"$f":"CALENDAR!F17","v":"Expoziție de antichități"},{"$f":"CALENDAR!G17","v":0},{"$f":"CALENDAR!H17","v":0},{"$f":"CALENDAR!I17","v":""},{"$f":"CALENDAR!J17","v":0},{"$f":"CALENDAR!K17","v":0},{"$f":"CALENDAR!L17","v":"Atelier comunitar"},{"$f":"CALENDAR!M17","v":0},{"$f":"CALENDAR!N17","v":0},{"$f":"CALENDAR!O17","v":"Consiliul comunal"},{"$f":"CALENDAR!P17","v":0},{"$f":"CALENDAR!Q17","v":0},{"$f":"CALENDAR!R17","v":""},{"$f":"CALENDAR!S17","v":0},{"$f":"CALENDAR!T17","v":0},{"$f":"CALENDAR!U17","v":""}]
[null,null,{"$f":"CALENDAR!C18","v":""},{"$f":"CALENDAR!D18","v":0},{"$f":"CALENDAR!E18","v":0},{"$f":"CALENDAR!F18","v":""},{"$f":"CALENDAR!G18","v":0},{"$f":"CALENDAR!H18","v":0},{"$f":"CALENDAR!I18","v":""},{"$f":"CALENDAR!J18","v":0},{"$f":"CALENDAR!K18","v":0},{"$f":"CALENDAR!L18","v":""},{"$f":"CALENDAR!M18","v":0},{"$f":"CALENDAR!N18","v":0},{"$f":"CALENDAR!O18","v":""},{"$f":"CALENDAR!P18","v":0},{"$f":"CALENDAR!Q18","v":0},{"$f":"CALENDAR!R18","v":""},{"$f":"CALENDAR!S18","v":0},{"$f":"CALENDAR!T18","v":0},{"$f":"CALENDAR!U18","v":""}]
[null,null,{"$f":"CALENDAR!C19","v":""},{"$f":"CALENDAR!D19","v":0},{"$f":"CALENDAR!E19","v":0},{"$f":"CALENDAR!F19","v":""},{"$f":"CALENDAR!G19","v":0},{"$f":"CALENDAR!H19","v":0},{"$f":"CALENDAR!I19","v":""},{"$f":"CALENDAR!J19","v":0},{"$f":"CALENDAR!K19","v":0},{"$f":"CALENDAR!L19","v":""},{"$f":"CALENDAR!M19","v":0},{"$f":"CALENDAR!N19","v":0},{"$f":"CALENDAR!O19","v":""},{"$f":"CALENDAR!P19","v":0},{"$f":"CALENDAR!Q19","v":0},{"$f":"CALENDAR!R19","v":""},{"$f":"CALENDAR!S19","v":0},{"$f":"CALENDAR!T19","v":0},{"$f":"CALENDAR!U19","v":""}]
[null,null,{"$f":"CALENDAR!C20","v":""},{"$f":"CALENDAR!D20","v":0},{"$f":"CALENDAR!E20","v":0},{"$f":"CALENDAR!F20","v":""},{"$f":"CALENDAR!G20","v":0},{"$f":"CALENDAR!H20","v":0},{"$f":"CALENDAR!I20","v":""},{"$f":"CALENDAR!J20","v":0},{"$f":"CALENDAR!K20","v":0},{"$f":"CALENDAR!L20","v":""},{"$f":"CALENDAR!M20","v":0},{"$f":"CALENDAR!N20","v":0},{"$f":"CALENDAR!O20","v":""},{"$f":"CALENDAR!P20","v":0},{"$f":"CALENDAR!Q20","v":0},{"$f":"CALENDAR!R20","v":""},{"$f":"CALENDAR!S20","v":0},{"$f":"CALENDAR!T20","v":0},{"$f":"CALENDAR!U20","v":""}]
[null,null,{"$f":"CALENDAR!C21","v":"2016-07-18"},{"$f":"CALENDAR!D21","v":0},{"$f":"CALENDAR!E21","v":0},{"$f":"CALENDAR!F21","v":"2016-07-19"},{"$f":"CALENDAR!G21","v":0},{"$f":"CALENDAR!H21","v":0},{"$f":"CALENDAR!I21","v":"2016-07-20"},{"$f":"CALENDAR!J21","v":0},{"$f":"CALENDAR!K21","v":0},{"$f":"CALENDAR!L21","v":"2016-07-21"},{"$f":"CALENDAR!M21","v":0},{"$f":"CALENDAR!N21","v":0},{"$f":"CALENDAR!O21","v":"2016-07-22"},{"$f":"CALENDAR!P21","v":0},{"$f":"CALENDAR!Q21","v":0},{"$f":"CALENDAR!R21","v":"2016-07-23"},{"$f":"CALENDAR!S21","v":0},{"$f":"CALENDAR!T21","v":0},{"$f":"CALENDAR!U21","v":"2016-07-24"}]
[null,null,{"$f":"CALENDAR!C22","v":""},{"$f":"CALENDAR!D22","v":0},{"$f":"CALENDAR!E22","v":0},{"$f":"CALENDAR!F22","v":"Atelier de planificare strategică"},{"$f":"CALENDAR!G22","v":0},{"$f":"CALENDAR!H22","v":0},{"$f":"CALENDAR!I22","v":"Curățarea parcului"},{"$f":"CALENDAR!J22","v":0},{"$f":"CALENDAR!K22","v":0},{"$f":"CALENDAR!L22","v":""},{"$f":"CALENDAR!M22","v":0},{"$f":"CALENDAR!N22","v":0},{"$f":"CALENDAR!O22","v":"Consiliul comunal"},{"$f":"CALENDAR!P22","v":0},{"$f":"CALENDAR!Q22","v":0},{"$f":"CALENDAR!R22","v":""},{"$f":"CALENDAR!S22","v":0},{"$f":"CALENDAR!T22","v":0},{"$f":"CALENDAR!U22","v":""}]
[null,null,{"$f":"CALENDAR!C23","v":""},{"$f":"CALENDAR!D23","v":0},{"$f":"CALENDAR!E23","v":0},{"$f":"CALENDAR!F23","v":""},{"$f":"CALENDAR!G23","v":0},{"$f":"CALENDAR!H23","v":0},{"$f":"CALENDAR!I23","v":""},{"$f":"CALENDAR!J23","v":0},{"$f":"CALENDAR!K23","v":0},{"$f":"CALENDAR!L23","v":""},{"$f":"CALENDAR!M23","v":0},{"$f":"CALENDAR!N23","v":0},{"$f":"CALENDAR!O23","v":""},{"$f":"CALENDAR!P23","v":0},{"$f":"CALENDAR!Q23","v":0},{"$f":"CALENDAR!R23","v":""},{"$f":"CALENDAR!S23","v":0},{"$f":"CALENDAR!T23","v":0},{"$f":"CALENDAR!U23","v":""}]
[null,null,{"$f":"CALENDAR!C24","v":""},{"$f":"CALENDAR!D24","v":0},{"$f":"CALENDAR!E24","v":0},{"$f":"CALENDAR!F24","v":""},{"$f":"CALENDAR!G24","v":0},{"$f":"CALENDAR!H24","v":0},{"$f":"CALENDAR!I24","v":""},{"$f":"CALENDAR!J24","v":0},{"$f":"CALENDAR!K24","v":0},{"$f":"CALENDAR!L24","v":""},{"$f":"CALENDAR!M24","v":0},{"$f":"CALENDAR!N24","v":0},{"$f":"CALENDAR!O24","v":""},{"$f":"CALENDAR!P24","v":0},{"$f":"CALENDAR!Q24","v":0},{"$f":"CALENDAR!R24","v":""},{"$f":"CALENDAR!S24","v":0},{"$f":"CALENDAR!T24","v":0},{"$f":"CALENDAR!U24","v":""}]
[null,null,{"$f":"CALENDAR!C25","v":""},{"$f":"CALENDAR!D25","v":0},{"$f":"CALENDAR!E25","v":0},{"$f":"CALENDAR!F25","v":""},{"$f":"CALENDAR!G25","v":0},{"$f":"CALENDAR!H25","v":0},{"$f":"CALENDAR!I25","v":""},{"$f":"CALENDAR!J25","v":0},{"$f":"CALENDAR!K25","v":0},{"$f":"CALENDAR!L25","v":""},{"$f":"CALENDAR!M25","v":0},{"$f":"CALENDAR!N25","v":0},{"$f":"CALENDAR!O25","v":""},{"$f":"CALENDAR!P25","v":0},{"$f":"CALENDAR!Q25","v":0},{"$f":"CALENDAR!R25","v":""},{"$f":"CALENDAR!S25","v":0},{"$f":"CALENDAR!T25","v":0},{"$f":"CALENDAR!U25","v":""}]
[null,null,{"$f":"CALENDAR!C26","v":"2016-07-25"},{"$f":"CALENDAR!D26","v":0},{"$f":"CALENDAR!E26","v":0},{"$f":"CALENDAR!F26","v":"2016-07-26"},{"$f":"CALENDAR!G26","v":0},{"$f":"CALENDAR!H26","v":0},{"$f":"CALENDAR!I26","v":"2016-07-27"},{"$f":"CALENDAR!J26","v":0},{"$f":"CALENDAR!K26","v":0},{"$f":"CALENDAR!L26","v":"2016-07-28"},{"$f":"CALENDAR!M26","v":0},{"$f":"CALENDAR!N26","v":0},{"$f":"CALENDAR!O26","v":"2016-07-29"},{"$f":"CALENDAR!P26","v":0},{"$f":"CALENDAR!Q26","v":0},{"$f":"CALENDAR!R26","v":"2016-07-30"},{"$f":"CALENDAR!S26","v":0},{"$f":"CALENDAR!T26","v":0},{"$f":"CALENDAR!U26","v":"2016-07-31"}]
[null,null,{"$f":"CALENDAR!C27","v":""},{"$f":"CALENDAR!D27","v":0},{"$f":"CALENDAR!E27","v":0},{"$f":"CALENDAR!F27","v":"Tur la pas prin centrul orașului"},{"$f":"CALENDAR!G27","v":0},{"$f":"CALENDAR!H27","v":0},{"$f":"CALENDAR!I27","v":""},{"$f":"CALENDAR!J27","v":0},{"$f":"CALENDAR!K27","v":0},{"$f":"CALENDAR!L27","v":""},{"$f":"CALENDAR!M27","v":0},{"$f":"CALENDAR!N27","v":0},{"$f":"CALENDAR!O27","v":"Consiliul comunal"},{"$f":"CALENDAR!P27","v":0},{"$f":"CALENDAR!Q27","v":0},{"$f":"CALENDAR!R27","v":""},{"$f":"CALENDAR!S27","v":0},{"$f":"CALENDAR!T27","v":0},{"$f":"CALENDAR!U27","v":""}]
[null,null,{"$f":"CALENDAR!C28","v":""},{"$f":"CALENDAR!D28","v":0},{"$f":"CALENDAR!E28","v":0},{"$f":"CALENDAR!F28","v":"Turul barurilor"},{"$f":"CALENDAR!G28","v":0},{"$f":"CALENDAR!H28","v":0},{"$f":"CALENDAR!I28","v":""},{"$f":"CALENDAR!J28","v":0},{"$f":"CALENDAR!K28","v":0},{"$f":"CALENDAR!L28","v":""},{"$f":"CALENDAR!M28","v":0},{"$f":"CALENDAR!N28","v":0},{"$f":"CALENDAR!O28","v":""},{"$f":"CALENDAR!P28","v":0},{"$f":"CALENDAR!Q28","v":0},{"$f":"CALENDAR!R28","v":""},{"$f":"CALENDAR!S28","v":0},{"$f":"CALENDAR!T28","v":0},{"$f":"CALENDAR!U28","v":""}]
[null,null,{"$f":"CALENDAR!C29","v":""},{"$f":"CALENDAR!D29","v":0},{"$f":"CALENDAR!E29","v":0},{"$f":"CALENDAR!F29","v":""},{"$f":"CALENDAR!G29","v":0},{"$f":"CALENDAR!H29","v":0},{"$f":"CALENDAR!I29","v":""},{"$f":"CALENDAR!J29","v":0},{"$f":"CALENDAR!K29","v":0},{"$f":"CALENDAR!L29","v":""},{"$f":"CALENDAR!M29","v":0},{"$f":"CALENDAR!N29","v":0},{"$f":"CALENDAR!O29","v":""},{"$f":"CALENDAR!P29","v":0},{"$f":"CALENDAR!Q29","v":0},{"$f":"CALENDAR!R29","v":""},{"$f":"CALENDAR!S29","v":0},{"$f":"CALENDAR!T29","v":0},{"$f":"CALENDAR!U29","v":""}]
[null,null,{"$f":"CALENDAR!C30","v":""},{"$f":"CALENDAR!D30","v":0},{"$f":"CALENDAR!E30","v":0},{"$f":"CALENDAR!F30","v":""},{"$f":"CALENDAR!G30","v":0},{"$f":"CALENDAR!H30","v":0},{"$f":"CALENDAR!I30","v":""},{"$f":"CALENDAR!J30","v":0},{"$f":"CALENDAR!K30","v":0},{"$f":"CALENDAR!L30","v":""},{"$f":"CALENDAR!M30","v":0},{"$f":"CALENDAR!N30","v":0},{"$f":"CALENDAR!O30","v":""},{"$f":"CALENDAR!P30","v":0},{"$f":"CALENDAR!Q30","v":0},{"$f":"CALENDAR!R30","v":""},{"$f":"CALENDAR!S30","v":0},{"$f":"CALENDAR!T30","v":0},{"$f":"CALENDAR!U30","v":""}]
[null,null,{"$f":"CALENDAR!C31","v":"2016-08-01"},{"$f":"CALENDAR!D31","v":0},{"$f":"CALENDAR!E31","v":0},{"$f":"CALENDAR!F31","v":"2016-08-02"},null,null,{"$f":"CALENDAR!I31","v":"NOTE:"}]
[null,null,{"$f":"CALENDAR!C32","v":""},{"$f":"CALENDAR!D32","v":0},{"$f":"CALENDAR!E32","v":0},{"$f":"CALENDAR!F32","v":""}]
[null,null,{"$f":"CALENDAR!C33","v":""},{"$f":"CALENDAR!D33","v":0},{"$f":"CALENDAR!E33","v":0},{"$f":"CALENDAR!F33","v":""}]
[null,null,{"$f":"CALENDAR!C34","v":""},{"$f":"CALENDAR!D34","v":0},{"$f":"CALENDAR!E34","v":0},{"$f":"CALENDAR!F34","v":""}]
[null,null,{"$f":"CALENDAR!C35","v":""},{"$f":"CALENDAR!D35","v":0},{"$f":"CALENDAR!E35","v":0},{"$f":"CALENDAR!F35","v":""}]

{"sheet":"ADMIN","index":3,"n_rows":14,"n_cols":3,"rows_kept":14,"hidden":true}
[]
[null,"LUNA","NUMĂR"]
[null,"IANUARIE",1]
[null,"FEBRUARIE",2]
[null,"MARTIE",3]
[null,"APRILIE",4]
[null,"MAI",5]
[null,"IUNIE",6]
[null,"IULIE",7]
[null,"AUGUST",8]
[null,"SEPTEMBRIE",9]
[null,"OCTOMBRIE",10]
[null,"NOIEMBRIE",11]
[null,"DECEMBRIE",12]